[Event "Titled Tuesday Blitz July 4 Early 2023"]
[White "Gorovets, Andrey"]
[Black "So, Wesley"]
[WhiteFideId "13504037"]
[BlackFideId "5202213"]
[WhiteElo "2759"]
[BlackElo "3079"]
[Result "0-1"]
[Round "6"]
[TimeControl "180+2"]
[Date "2023.07.04"]
[WhiteClock "0:00:00"]
[BlackClock "0:00:12"]
[Board "36"]

1. Nf3 {[%clk 0:02:58]}  c5 {[%clk 0:01:22]} 2. c4 {[%clk 0:02:56]}  Nc6 {[%clk 0:01:21]} 3. Nc3 {[%clk 0:02:54]}  g6 {[%clk 0:01:21]} 4. e3 {[%clk 0:02:50]}  Nf6 {[%clk 0:01:21]} 5. d4 {[%clk 0:02:49]}  cxd4 {[%clk 0:01:22]} 6. exd4 {[%clk 0:02:50]}  d5 {[%clk 0:01:22]} 7. cxd5 {[%clk 0:02:50]}  Nxd5 {[%clk 0:01:23]} 8. Qb3 {[%clk 0:02:47]}  Nxc3 {[%clk 0:01:23]} 9. Bc4 {[%clk 0:02:46]}  Nd5 {[%clk 0:01:23]} 10. Bxd5 {[%clk 0:02:46]}  e6 {[%clk 0:01:24]} 11. Bxc6+ {[%clk 0:02:45]}  bxc6 {[%clk 0:01:25]} 12. O-O {[%clk 0:02:40]}  Qd5 {[%clk 0:01:24]} 13. Bf4 {[%clk 0:02:36]}  f6 {[%clk 0:01:18]} 14. Rac1 {[%clk 0:02:29]}  g5 {[%clk 0:01:17]} 15. Bd2 {[%clk 0:02:19]}  Bd6 {[%clk 0:01:15]} 16. h3 {[%clk 0:02:04]}  h5 {[%clk 0:01:14]} 17. Qxd5 {[%clk 0:01:59]}  cxd5 {[%clk 0:01:15]} 18. Ba5 {[%clk 0:01:54]}  Kd7 {[%clk 0:01:10]} 19. Rc3 {[%clk 0:01:48]}  Rb8 {[%clk 0:01:03]} 20. Rb3 {[%clk 0:01:44]}  Rxb3 {[%clk 0:01:02]} 21. axb3 {[%clk 0:01:45]}  Ba6 {[%clk 0:01:00]} 22. Ra1 {[%clk 0:01:44]}  Bb5 {[%clk 0:00:48]} 23. Bc3 {[%clk 0:01:37]}  a6 {[%clk 0:00:48]} 24. Ne1 {[%clk 0:01:37]}  g4 {[%clk 0:00:45]} 25. hxg4 {[%clk 0:01:01]}  hxg4 {[%clk 0:00:44]} 26. g3 {[%clk 0:01:02]}  Be2 {[%clk 0:00:39]} 27. Ng2 {[%clk 0:01:02]}  Rb8 {[%clk 0:00:34]} 28. Re1 {[%clk 0:00:58]}  Bf3 {[%clk 0:00:33]} 29. Ra1 {[%clk 0:00:56]}  Be2 {[%clk 0:00:32]} 30. Re1 {[%clk 0:00:56]}  Bd3 {[%clk 0:00:33]} 31. Ne3 {[%clk 0:00:46]}  f5 {[%clk 0:00:33]} 32. Rd1 {[%clk 0:00:47]}  Be2 {[%clk 0:00:30]} 33. Re1 {[%clk 0:00:45]}  Bf3 {[%clk 0:00:30]} 34. Ra1 {[%clk 0:00:45]}  Rh8 {[%clk 0:00:26]} 35. Ng2 {[%clk 0:00:45]}  Be2 {[%clk 0:00:26]} 36. Re1 {[%clk 0:00:41]}  Bd3 {[%clk 0:00:27]} 37. Rd1 {[%clk 0:00:40]}  Bc2 {[%clk 0:00:27]} 38. Ra1 {[%clk 0:00:39]}  Ra8 {[%clk 0:00:27]} 39. b4 {[%clk 0:00:37]}  Bd3 {[%clk 0:00:28]} 40. Ne1 {[%clk 0:00:33]}  Be2 {[%clk 0:00:25]} 41. Ng2 {[%clk 0:00:31]}  Rb8 {[%clk 0:00:25]} 42. Ra4 {[%clk 0:00:30]}  Bb5 {[%clk 0:00:24]} 43. Ra1 {[%clk 0:00:30]}  Bc4 {[%clk 0:00:25]} 44. Ra4 {[%clk 0:00:29]}  Kc6 {[%clk 0:00:23]} 45. Nf4 {[%clk 0:00:29]}  Bxf4 {[%clk 0:00:20]} 46. gxf4 {[%clk 0:00:30]}  Bd3 {[%clk 0:00:20]} 47. Ra5 {[%clk 0:00:19]}  Rh8 {[%clk 0:00:19]} 48. Kg2 {[%clk 0:00:13]}  Be4+ {[%clk 0:00:19]} 49. Kf1 {[%clk 0:00:14]}  Bf3 {[%clk 0:00:17]} 50. Ke1 {[%clk 0:00:13]}  Kb6 {[%clk 0:00:18]} 51. Kd2 {[%clk 0:00:11]}  Rh2 {[%clk 0:00:18]} 52. Ke3 {[%clk 0:00:12]}  Be4 {[%clk 0:00:19]} 53. Ra1 {[%clk 0:00:11]}  Rh3+ {[%clk 0:00:18]} 54. Ke2 {[%clk 0:00:11]}  Bf3+ {[%clk 0:00:18]} 55. Ke3 {[%clk 0:00:11]}  Bd1+ {[%clk 0:00:15]} 56. Kd2 {[%clk 0:00:10]}  Bb3 {[%clk 0:00:16]} 57. Rg1 {[%clk 0:00:10]}  Rf3 {[%clk 0:00:16]} 58. Ke2 {[%clk 0:00:08]}  Rxf4 {[%clk 0:00:17]} 59. Rg3 {[%clk 0:00:08]}  Bc4+ {[%clk 0:00:15]} 60. Ke1 {[%clk 0:00:08]}  Kc6 {[%clk 0:00:13]} 61. Re3 {[%clk 0:00:07]}  Kd7 {[%clk 0:00:13]} 62. b3 {[%clk 0:00:05]}  Bb5 {[%clk 0:00:12]} 63. Bb2 {[%clk 0:00:05]}  Kd6 {[%clk 0:00:12]} 64. Bc3 {[%clk 0:00:06]}  Re4 {[%clk 0:00:11]} 65. Rxe4 {[%clk 0:00:05]}  dxe4 {[%clk 0:00:12]} 66. Bd2 {[%clk 0:00:05]}  Kd5 {[%clk 0:00:12]} 67. Be3 {[%clk 0:00:05]}  e5 {[%clk 0:00:12]} 68. dxe5 {[%clk 0:00:06]}  Kxe5 {[%clk 0:00:13]} 69. Bb6 {[%clk 0:00:06]}  f4 {[%clk 0:00:13]} 70. Bc7+ {[%clk 0:00:06]}  Kf5 {[%clk 0:00:14]} 71. Bb8 {[%clk 0:00:06]}  Bd3 {[%clk 0:00:14]} 72. Bc7 {[%clk 0:00:06]}  Bc2 {[%clk 0:00:14]} 73. Bb8 {[%clk 0:00:06]}  Bxb3 {[%clk 0:00:15]} 74. Bc7 {[%clk 0:00:06]}  Ba4 {[%clk 0:00:15]} 75. Bb8 {[%clk 0:00:07]}  Bb5 {[%clk 0:00:15]} 76. Bc7 {[%clk 0:00:07]}  e3 {[%clk 0:00:14]} 77. fxe3 {[%clk 0:00:07]}  fxe3 {[%clk 0:00:15]} 78. Bb6 {[%clk 0:00:03]}  Ke4 {[%clk 0:00:16]} 79. Bc7 {[%clk 0:00:03]}  Kf3 {[%clk 0:00:16]} 80. Bb8 {[%clk 0:00:01]}  g3 {[%clk 0:00:16]} 81. Bc7 {[%clk 0:00:01]}  Bc4 {[%clk 0:00:16]} 82. Bd6 {[%clk 0:00:01]}  Bd3 {[%clk 0:00:16]} 83. Be5 {[%clk 0:00:02]}  Bb5 {[%clk 0:00:16]} 84. Bd6 {[%clk 0:00:02]}  Kg4 {[%clk 0:00:15]} 85. Bc5 {[%clk 0:00:01]}  Kf4 {[%clk 0:00:12]} 86. Bd6+ {[%clk 0:00:02]}  Kf3 {[%clk 0:00:12]} 87. Bc7 {[%clk 0:00:02]}  g2 {[%clk 0:00:13]} 88. Bh2 {[%clk 0:00:02]}  Ke4 {[%clk 0:00:13]} 89. Bg1 {[%clk 0:00:02]}  Kd3 {[%clk 0:00:14]} 90. Bh2 {[%clk 0:00:02]}  Bc6 {[%clk 0:00:14]} 91. Bg1 {[%clk 0:00:03]}  Bf3 {[%clk 0:00:13]} 92. Bh2 {[%clk 0:00:03]}  e2 {[%clk 0:00:14]} 93. Bg1 {[%clk 0:00:01]}  Kc4 {[%clk 0:00:14]} 94. Bf2 {[%clk 0:00:01]}  Kxb4 {[%clk 0:00:14]} 95. Kd2 {[%clk 0:00:02]}  Kc4 {[%clk 0:00:14]} 96. Ke3 {[%clk 0:00:00]}  g1=Q {[%clk 0:00:12]} 0-1


[Site "https://www.chess.com"]

[Event "Titled Tuesday Blitz July 4 Early 2023"]
[White "Khismatullin, Denis"]
[Black "Timerkhanov, Alexander"]
[WhiteFideId "4142578"]
[BlackFideId "24177938"]
[WhiteElo "2957"]
[BlackElo "2681"]
[Result "1-0"]
[Round "6"]
[TimeControl "180+2"]
[Date "2023.07.04"]
[WhiteClock "0:00:48"]
[BlackClock "0:00:01"]
[Board "38"]

1. d4 {[%clk 0:02:55]}  d5 {[%clk 0:02:59]} 2. c4 {[%clk 0:02:56]}  e6 {[%clk 0:02:59]} 3. Nc3 {[%clk 0:02:56]}  h6 {[%clk 0:02:58]} 4. Bf4 {[%clk 0:02:55]}  Nf6 {[%clk 0:02:58]} 5. e3 {[%clk 0:02:56]}  Bd6 {[%clk 0:02:57]} 6. Bg3 {[%clk 0:02:55]}  O-O {[%clk 0:02:55]} 7. Nf3 {[%clk 0:02:56]}  b6 {[%clk 0:02:50]} 8. cxd5 {[%clk 0:02:53]}  exd5 {[%clk 0:02:50]} 9. Bh4 {[%clk 0:02:53]}  Be7 {[%clk 0:02:41]} 10. Bd3 {[%clk 0:02:53]}  a6 {[%clk 0:02:41]} 11. Rc1 {[%clk 0:02:53]}  Bb7 {[%clk 0:02:40]} 12. O-O {[%clk 0:02:54]}  Ne4 {[%clk 0:02:39]} 13. Bxe7 {[%clk 0:02:46]}  Qxe7 {[%clk 0:02:40]} 14. Qb3 {[%clk 0:02:47]}  Qd6 {[%clk 0:02:33]} 15. Bxe4 {[%clk 0:02:21]}  dxe4 {[%clk 0:02:33]} 16. Nd2 {[%clk 0:02:22]}  Re8 {[%clk 0:02:30]} 17. Nc4 {[%clk 0:02:17]}  Qe7 {[%clk 0:02:22]} 18. Rfd1 {[%clk 0:01:57]}  a5 {[%clk 0:01:45]} 19. d5 {[%clk 0:01:42]}  Ba6 {[%clk 0:00:47]} 20. d6 {[%clk 0:01:31]}  Bxc4 {[%clk 0:00:21]} 21. Qxc4 {[%clk 0:01:29]}  cxd6 {[%clk 0:00:20]} 22. Nd5 {[%clk 0:01:26]}  Qg5 {[%clk 0:00:16]} 23. Nc7 {[%clk 0:01:21]}  Rc8 {[%clk 0:00:16]} 24. Qxe4 {[%clk 0:01:01]}  Ra7 {[%clk 0:00:13]} 25. Nb5 {[%clk 0:00:51]}  Rxc1 {[%clk 0:00:14]} 26. Rxc1 {[%clk 0:00:52]}  f5 {[%clk 0:00:06]} 27. Qe8+ {[%clk 0:00:48]}  Kh7 {[%clk 0:00:01]} 28. Nxa7 {[%clk 0:00:48]} 1-0


[Site "https://www.chess.com"]

[Event "Titled Tuesday Blitz July 4 Early 2023"]
[White "Shimanov, Aleksandr"]
[Black "Akhmedinov, Satbek"]
[WhiteFideId "4198603"]
[BlackFideId "13714287"]
[WhiteElo "2914"]
[BlackElo "2656"]
[Result "0-1"]
[Round "6"]
[TimeControl "180+2"]
[Date "2023.07.04"]
[WhiteClock "0:00:00"]
[BlackClock "0:00:18"]
[Board "40"]

1. e4 {[%clk 0:03:00]}  c5 {[%clk 0:02:59]} 2. d4 {[%clk 0:02:51]}  cxd4 {[%clk 0:02:58]} 3. c3 {[%clk 0:02:51]}  dxc3 {[%clk 0:02:57]} 4. Nxc3 {[%clk 0:02:51]}  Nc6 {[%clk 0:02:57]} 5. Nf3 {[%clk 0:02:49]}  d6 {[%clk 0:02:56]} 6. Be2 {[%clk 0:02:50]}  Nf6 {[%clk 0:02:56]} 7. O-O {[%clk 0:02:49]}  e5 {[%clk 0:02:56]} 8. Bc4 {[%clk 0:02:16]}  Be7 {[%clk 0:02:55]} 9. Bg5 {[%clk 0:02:09]}  O-O {[%clk 0:02:53]} 10. Bxf6 {[%clk 0:02:09]}  Bxf6 {[%clk 0:02:53]} 11. h3 {[%clk 0:02:09]}  a6 {[%clk 0:02:53]} 12. a3 {[%clk 0:02:00]}  b5 {[%clk 0:02:42]} 13. Ba2 {[%clk 0:02:00]}  Bb7 {[%clk 0:02:38]} 14. Nd5 {[%clk 0:01:59]}  Ne7 {[%clk 0:02:32]} 15. Nc3 {[%clk 0:01:43]}  g6 {[%clk 0:02:21]} 16. Qd3 {[%clk 0:01:42]}  Qb6 {[%clk 0:02:11]} 17. Rfd1 {[%clk 0:01:41]}  Rad8 {[%clk 0:02:11]} 18. Qe2 {[%clk 0:01:33]}  h6 {[%clk 0:02:07]} 19. Rd3 {[%clk 0:01:32]}  Kh7 {[%clk 0:01:58]} 20. Rad1 {[%clk 0:01:31]}  Bg7 {[%clk 0:01:59]} 21. Qd2 {[%clk 0:01:23]}  f5 {[%clk 0:01:59]} 22. Rxd6 {[%clk 0:01:23]}  Rxd6 {[%clk 0:01:59]} 23. Qxd6 {[%clk 0:01:24]}  Qxd6 {[%clk 0:01:59]} 24. Rxd6 {[%clk 0:01:25]}  fxe4 {[%clk 0:02:00]} 25. Nd2 {[%clk 0:01:25]}  Nf5 {[%clk 0:01:49]} 26. Rd7 {[%clk 0:01:22]}  Bc8 {[%clk 0:01:39]} 27. Rc7 {[%clk 0:01:13]}  e3 {[%clk 0:01:39]} 28. fxe3 {[%clk 0:01:13]}  Nxe3 {[%clk 0:01:40]} 29. Nce4 {[%clk 0:00:58]}  Nf5 {[%clk 0:01:11]} 30. Nb3 {[%clk 0:00:50]}  Be6 {[%clk 0:01:09]} 31. Nc1 {[%clk 0:00:49]}  Rc8 {[%clk 0:01:03]} 32. Rxc8 {[%clk 0:00:46]}  Bxc8 {[%clk 0:01:03]} 33. Nd3 {[%clk 0:00:45]}  Nd4 {[%clk 0:00:56]} 34. Kf2 {[%clk 0:00:40]}  Bf8 {[%clk 0:00:52]} 35. Nxe5 {[%clk 0:00:24]}  Kg7 {[%clk 0:00:47]} 36. Ke3 {[%clk 0:00:22]}  Nf5+ {[%clk 0:00:46]} 37. Kd3 {[%clk 0:00:22]}  Bb7 {[%clk 0:00:46]} 38. g4 {[%clk 0:00:22]}  Nd6 {[%clk 0:00:42]} 39. Nc5 {[%clk 0:00:22]}  Bg2 {[%clk 0:00:42]} 40. Ne6+ {[%clk 0:00:22]}  Kf6 {[%clk 0:00:32]} 41. Nd7+ {[%clk 0:00:21]}  Ke7 {[%clk 0:00:32]} 42. Ndxf8 {[%clk 0:00:20]}  Bxh3 {[%clk 0:00:33]} 43. Nxg6+ {[%clk 0:00:19]}  Kf6 {[%clk 0:00:33]} 44. Ngf4 {[%clk 0:00:18]}  Bxg4 {[%clk 0:00:33]} 45. Nd4 {[%clk 0:00:18]}  h5 {[%clk 0:00:33]} 46. Ke3 {[%clk 0:00:18]}  h4 {[%clk 0:00:32]} 47. Bd5 {[%clk 0:00:18]}  Ke5 {[%clk 0:00:29]} 48. Nc6+ {[%clk 0:00:11]}  Kf6 {[%clk 0:00:29]} 49. Nd4 {[%clk 0:00:10]}  Ke5 {[%clk 0:00:29]} 50. Nc6+ {[%clk 0:00:09]}  Kf6 {[%clk 0:00:29]} 51. Bg2 {[%clk 0:00:09]}  Nc4+ {[%clk 0:00:28]} 52. Kd4 {[%clk 0:00:09]}  Nxb2 {[%clk 0:00:28]} 53. Nb4 {[%clk 0:00:09]}  Nc4 {[%clk 0:00:28]} 54. a4 {[%clk 0:00:09]}  Nb6 {[%clk 0:00:28]} 55. Nfd5+ {[%clk 0:00:05]}  Nxd5 {[%clk 0:00:25]} 56. Nxd5+ {[%clk 0:00:06]}  Kg5 {[%clk 0:00:19]} 57. a5 {[%clk 0:00:07]}  h3 {[%clk 0:00:19]} 58. Bh1 {[%clk 0:00:07]}  Kh4 {[%clk 0:00:19]} 59. Ke3 {[%clk 0:00:07]}  Kg3 {[%clk 0:00:19]} 60. Nb4 {[%clk 0:00:07]}  Bc8 {[%clk 0:00:19]} 61. Ke2 {[%clk 0:00:03]}  Kh2 {[%clk 0:00:19]} 62. Bd5 {[%clk 0:00:02]}  Kg1 {[%clk 0:00:20]} 63. Ke3 {[%clk 0:00:02]}  h2 {[%clk 0:00:20]} 64. Nd3 {[%clk 0:00:01]}  h1=Q {[%clk 0:00:21]} 65. Bxh1 {[%clk 0:00:01]}  Kxh1 {[%clk 0:00:22]} 66. Kd4 {[%clk 0:00:01]}  Kg2 {[%clk 0:00:23]} 67. Nb4 {[%clk 0:00:02]}  Kf3 {[%clk 0:00:23]} 68. Kc5 {[%clk 0:00:03]}  Ke3 {[%clk 0:00:23]} 69. Nd5+ {[%clk 0:00:03]}  Kd3 {[%clk 0:00:23]} 70. Ne7 {[%clk 0:00:03]}  Bb7 {[%clk 0:00:21]} 71. Kb6 {[%clk 0:00:03]}  b4 {[%clk 0:00:22]} 72. Kxb7 {[%clk 0:00:02]}  b3 {[%clk 0:00:22]} 73. Nc6 {[%clk 0:00:01]}  b2 {[%clk 0:00:22]} 74. Kxa6 {[%clk 0:00:01]}  b1=Q {[%clk 0:00:22]} 75. Nd8 {[%clk 0:00:01]}  Kc4 {[%clk 0:00:20]} 76. Ka7 {[%clk 0:00:01]}  Kc5 {[%clk 0:00:21]} 77. Nb7+ {[%clk 0:00:02]}  Kc6 {[%clk 0:00:21]} 78. a6 {[%clk 0:00:02]}  Qb6+ {[%clk 0:00:21]} 79. Kb8 {[%clk 0:00:03]}  Qxa6 {[%clk 0:00:19]} 80. Nd8+ {[%clk 0:00:00]}  Kb6 {[%clk 0:00:18]} 0-1


[Site "https://www.chess.com"]

[Event "Titled Tuesday Blitz July 4 Early 2023"]
[White "Komov, Roman"]
[Black "Zhigalko, Sergei"]
[WhiteFideId "24175714"]
[BlackFideId "13502956"]
[WhiteElo "2627"]
[BlackElo "2898"]
[Result "1-0"]
[Round "6"]
[TimeControl "180+2"]
[Date "2023.07.04"]
[WhiteClock "0:00:04"]
[BlackClock "0:00:00"]
[Board "41"]

1. e4 {[%clk 0:02:59]}  c5 {[%clk 0:03:00]} 2. Nf3 {[%clk 0:03:00]}  Nc6 {[%clk 0:03:00]} 3. Bb5 {[%clk 0:03:01]}  Nf6 {[%clk 0:03:01]} 4. Nc3 {[%clk 0:03:01]}  Qc7 {[%clk 0:03:01]} 5. O-O {[%clk 0:02:54]}  Nd4 {[%clk 0:03:01]} 6. h3 {[%clk 0:02:45]}  a6 {[%clk 0:02:54]} 7. Bd3 {[%clk 0:02:42]}  Nxf3+ {[%clk 0:02:50]} 8. Qxf3 {[%clk 0:02:41]}  e6 {[%clk 0:02:51]} 9. a4 {[%clk 0:02:40]}  Bd6 {[%clk 0:02:51]} 10. b3 {[%clk 0:02:39]}  O-O {[%clk 0:02:50]} 11. Bb2 {[%clk 0:02:40]}  Be5 {[%clk 0:02:39]} 12. Rae1 {[%clk 0:02:31]}  Rb8 {[%clk 0:02:36]} 13. Qe2 {[%clk 0:02:27]}  h6 {[%clk 0:02:18]} 14. f4 {[%clk 0:02:11]}  Bd4+ {[%clk 0:02:19]} 15. Kh1 {[%clk 0:02:10]}  d6 {[%clk 0:02:19]} 16. e5 {[%clk 0:01:54]}  Nd7 {[%clk 0:02:00]} 17. exd6 {[%clk 0:01:37]}  Qxd6 {[%clk 0:01:52]} 18. Ne4 {[%clk 0:01:34]}  Qc6 {[%clk 0:01:41]} 19. Ba3 {[%clk 0:01:15]}  b5 {[%clk 0:01:36]} 20. axb5 {[%clk 0:01:12]}  axb5 {[%clk 0:01:36]} 21. c3 {[%clk 0:01:03]}  Bf6 {[%clk 0:01:37]} 22. Nxf6+ {[%clk 0:00:37]}  Nxf6 {[%clk 0:01:36]} 23. c4 {[%clk 0:00:38]}  bxc4 {[%clk 0:01:28]} 24. Bxc4 {[%clk 0:00:39]}  Bb7 {[%clk 0:01:28]} 25. d4 {[%clk 0:00:32]}  Ne4 {[%clk 0:01:21]} 26. Kh2 {[%clk 0:00:26]}  Rbd8 {[%clk 0:00:43]} 27. dxc5 {[%clk 0:00:22]}  Rd2 {[%clk 0:00:29]} 28. Qf3 {[%clk 0:00:15]}  Ng5 {[%clk 0:00:03]} 29. Qxc6 {[%clk 0:00:14]}  Bxc6 {[%clk 0:00:03]} 30. Re2 {[%clk 0:00:15]}  Ne4 {[%clk 0:00:01]} 31. Rfe1 {[%clk 0:00:13]}  f5 {[%clk 0:00:01]} 32. Bxe6+ {[%clk 0:00:12]}  Kh8 {[%clk 0:00:01]} 33. Rxd2 {[%clk 0:00:12]}  Nxd2 {[%clk 0:00:02]} 34. Bb2 {[%clk 0:00:12]}  Re8 {[%clk 0:00:02]} 35. Bc3 {[%clk 0:00:12]}  Ne4 {[%clk 0:00:02]} 36. Bxg7+ {[%clk 0:00:09]}  Kxg7 {[%clk 0:00:02]} 37. Bxf5 {[%clk 0:00:10]}  Kf6 {[%clk 0:00:02]} 38. Bg4 {[%clk 0:00:08]}  Rd8 {[%clk 0:00:01]} 39. Bf3 {[%clk 0:00:08]}  Kf5 {[%clk 0:00:02]} 40. Bg4+ {[%clk 0:00:04]}  Kxf4 {[%clk 0:00:02]} 41. b4 {[%clk 0:00:04]}  Rd2 {[%clk 0:00:02]} 42. Rf1+ {[%clk 0:00:05]}  Ke3 {[%clk 0:00:02]} 43. Bf3 {[%clk 0:00:05]}  Rb2 {[%clk 0:00:01]} 44. Re1+ {[%clk 0:00:04]}  Kf4 {[%clk 0:00:01]} 45. b5 {[%clk 0:00:03]}  Rxb5 {[%clk 0:00:00]} 46. Rf1 {[%clk 0:00:04]} 1-0


[Site "https://www.chess.com"]

[Event "Titled Tuesday Blitz July 4 Early 2023"]
[White "Demchenko, Anton"]
[Black "Ozdemir, Serhan Berat"]
[WhiteFideId "4160258"]
[BlackFideId "6374611"]
[WhiteElo "2878"]
[BlackElo "2626"]
[Result "1-0"]
[Round "6"]
[TimeControl "180+2"]
[Date "2023.07.04"]
[WhiteClock "0:00:51"]
[BlackClock "0:00:00"]
[Board "42"]

1. e4 {[%clk 0:02:59]}  c5 {[%clk 0:02:59]} 2. Nf3 {[%clk 0:02:57]}  e6 {[%clk 0:03:00]} 3. d4 {[%clk 0:02:56]}  cxd4 {[%clk 0:03:01]} 4. Nxd4 {[%clk 0:02:57]}  a6 {[%clk 0:03:00]} 5. Bd3 {[%clk 0:02:56]}  Nf6 {[%clk 0:02:50]} 6. O-O {[%clk 0:02:55]}  Qc7 {[%clk 0:02:43]} 7. Qe2 {[%clk 0:02:54]}  d6 {[%clk 0:02:43]} 8. c4 {[%clk 0:02:52]}  Nbd7 {[%clk 0:02:42]} 9. Nc3 {[%clk 0:02:52]}  g6 {[%clk 0:02:43]} 10. Be3 {[%clk 0:02:44]}  Bg7 {[%clk 0:02:43]} 11. Rac1 {[%clk 0:02:37]}  O-O {[%clk 0:02:42]} 12. f3 {[%clk 0:02:31]}  b6 {[%clk 0:02:41]} 13. Qd2 {[%clk 0:02:29]}  Bb7 {[%clk 0:02:37]} 14. Rfd1 {[%clk 0:02:29]}  Rfd8 {[%clk 0:02:27]} 15. Bf1 {[%clk 0:02:01]}  Rac8 {[%clk 0:02:26]} 16. Qf2 {[%clk 0:01:35]}  Qb8 {[%clk 0:02:22]} 17. Nc2 {[%clk 0:01:28]}  Bc6 {[%clk 0:02:03]} 18. Nb4 {[%clk 0:01:26]}  Nc5 {[%clk 0:00:44]} 19. Nxc6 {[%clk 0:01:24]}  Rxc6 {[%clk 0:00:44]} 20. Ne2 {[%clk 0:01:15]}  Rcc8 {[%clk 0:00:38]} 21. Nd4 {[%clk 0:01:14]}  h6 {[%clk 0:00:30]} 22. h3 {[%clk 0:01:14]}  g5 {[%clk 0:00:29]} 23. b4 {[%clk 0:01:09]}  Ncd7 {[%clk 0:00:28]} 24. b5 {[%clk 0:01:10]}  Ne5 {[%clk 0:00:18]} 25. bxa6 {[%clk 0:01:10]}  Qa7 {[%clk 0:00:18]} 26. Nb5 {[%clk 0:01:11]}  Qxa6 {[%clk 0:00:11]} 27. Bxb6 {[%clk 0:01:12]}  Rd7 {[%clk 0:00:11]} 28. Nxd6 {[%clk 0:01:10]}  Rxd6 {[%clk 0:00:05]} 29. Rxd6 {[%clk 0:01:10]}  Qa3 {[%clk 0:00:05]} 30. Rdd1 {[%clk 0:01:06]}  Nh5 {[%clk 0:00:03]} 31. Be3 {[%clk 0:01:00]}  Nf4 {[%clk 0:00:03]} 32. Bxf4 {[%clk 0:01:00]}  gxf4 {[%clk 0:00:04]} 33. c5 {[%clk 0:00:59]}  Ng6 {[%clk 0:00:04]} 34. c6 {[%clk 0:00:56]}  Be5 {[%clk 0:00:04]} 35. Kh1 {[%clk 0:00:51]}  Qxa2 {[%clk 0:00:00]} 36. Qxa2 {[%clk 0:00:51]} 1-0


[Site "https://www.chess.com"]

[Event "Titled Tuesday Blitz July 4 Early 2023"]
[White "Kovalenko, Igor"]
[Black "Perez Candelario, Manuel"]
[WhiteFideId "14117908"]
[BlackFideId "2210622"]
[WhiteElo "2876"]
[BlackElo "2584"]
[Result "1-0"]
[Round "6"]
[TimeControl "180+2"]
[Date "2023.07.04"]
[WhiteClock "0:01:18"]
[BlackClock "0:00:00"]
[Board "43"]

1. d4 {[%clk 0:02:58]}  d5 {[%clk 0:02:58]} 2. c4 {[%clk 0:02:57]}  e6 {[%clk 0:02:57]} 3. Nc3 {[%clk 0:02:50]}  Nf6 {[%clk 0:02:56]} 4. Nf3 {[%clk 0:02:50]}  Be7 {[%clk 0:02:55]} 5. Bf4 {[%clk 0:02:49]}  O-O {[%clk 0:02:53]} 6. e3 {[%clk 0:02:49]}  b6 {[%clk 0:02:49]} 7. Rc1 {[%clk 0:02:48]}  Bb7 {[%clk 0:02:35]} 8. a3 {[%clk 0:02:47]}  a6 {[%clk 0:02:25]} 9. cxd5 {[%clk 0:02:46]}  exd5 {[%clk 0:02:23]} 10. Bd3 {[%clk 0:02:46]}  Nbd7 {[%clk 0:02:20]} 11. h4 {[%clk 0:02:46]}  c5 {[%clk 0:02:18]} 12. Ne5 {[%clk 0:02:45]}  Re8 {[%clk 0:02:04]} 13. Ne2 {[%clk 0:02:37]}  c4 {[%clk 0:01:58]} 14. Bf5 {[%clk 0:02:35]}  Nf8 {[%clk 0:01:50]} 15. g4 {[%clk 0:02:33]}  Ne4 {[%clk 0:01:47]} 16. g5 {[%clk 0:02:21]}  b5 {[%clk 0:01:41]} 17. f3 {[%clk 0:02:21]}  Nd6 {[%clk 0:01:32]} 18. Bb1 {[%clk 0:02:20]}  a5 {[%clk 0:01:25]} 19. Kf2 {[%clk 0:02:19]}  b4 {[%clk 0:01:24]} 20. Qc2 {[%clk 0:02:15]}  Bc8 {[%clk 0:01:19]} 21. Ng3 {[%clk 0:02:12]}  b3 {[%clk 0:01:18]} 22. Qd2 {[%clk 0:02:08]}  Ra6 {[%clk 0:01:16]} 23. Ng4 {[%clk 0:02:04]}  Be6 {[%clk 0:00:50]} 24. Be5 {[%clk 0:02:04]}  Qc8 {[%clk 0:00:37]} 25. Qe2 {[%clk 0:02:01]}  Nf5 {[%clk 0:00:28]} 26. Nh5 {[%clk 0:01:58]}  Ng6 {[%clk 0:00:22]} 27. Rcg1 {[%clk 0:01:50]}  Nxe5 {[%clk 0:00:22]} 28. Nxe5 {[%clk 0:01:50]}  Nd6 {[%clk 0:00:10]} 29. Nf6+ {[%clk 0:01:49]}  Kh8 {[%clk 0:00:07]} 30. Nxe8 {[%clk 0:01:49]}  Qxe8 {[%clk 0:00:07]} 31. h5 {[%clk 0:01:42]}  Bf5 {[%clk 0:00:07]} 32. g6 {[%clk 0:01:40]}  fxg6 {[%clk 0:00:05]} 33. hxg6 {[%clk 0:01:39]}  h6 {[%clk 0:00:05]} 34. Bxf5 {[%clk 0:01:36]}  Nxf5 {[%clk 0:00:06]} 35. Rh5 {[%clk 0:01:32]}  Nd6 {[%clk 0:00:05]} 36. f4 {[%clk 0:01:29]}  Kg8 {[%clk 0:00:04]} 37. Qg4 {[%clk 0:01:29]}  Bf8 {[%clk 0:00:04]} 38. Kf3 {[%clk 0:01:24]}  Ne4 {[%clk 0:00:04]} 39. Qd7 {[%clk 0:01:20]}  Qxd7 {[%clk 0:00:04]} 40. Nxd7 {[%clk 0:01:21]}  c3 {[%clk 0:00:03]} 41. bxc3 {[%clk 0:01:21]}  Bxa3 {[%clk 0:00:03]} 42. Rxd5 {[%clk 0:01:20]}  Nxc3 {[%clk 0:00:02]} 43. Re5 {[%clk 0:01:19]}  Ra8 {[%clk 0:00:01]} 44. Nb6 {[%clk 0:01:18]}  b2 {[%clk 0:00:00]} 45. Nxa8 {[%clk 0:01:18]} 1-0


[Site "https://www.chess.com"]

[Event "Titled Tuesday Blitz July 4 Early 2023"]
[White "Golubev, Mikhail"]
[Black "Makarian, Rudik"]
[WhiteFideId "14100983"]
[BlackFideId "44105681"]
[WhiteElo "2558"]
[BlackElo "2979"]
[Result "1/2-1/2"]
[Round "6"]
[TimeControl "180+2"]
[Date "2023.07.04"]
[WhiteClock "0:02:28"]
[BlackClock "0:00:02"]
[Board "49"]

1. e4 {[%clk 0:03:00]}  c5 {[%clk 0:02:52]} 2. Nf3 {[%clk 0:02:59]}  e6 {[%clk 0:02:52]} 3. d4 {[%clk 0:02:59]}  cxd4 {[%clk 0:02:52]} 4. Nxd4 {[%clk 0:03:00]}  Nc6 {[%clk 0:02:53]} 5. Nc3 {[%clk 0:02:59]}  Nf6 {[%clk 0:02:53]} 6. Bf4 {[%clk 0:02:56]}  Bb4 {[%clk 0:02:49]} 7. Nb5 {[%clk 0:02:54]}  Nxe4 {[%clk 0:02:48]} 8. Qf3 {[%clk 0:02:46]}  d5 {[%clk 0:02:47]} 9. Nc7+ {[%clk 0:02:45]}  Kf8 {[%clk 0:02:42]} 10. Nxa8 {[%clk 0:02:45]}  e5 {[%clk 0:02:42]} 11. Bd2 {[%clk 0:02:43]}  Nd4 {[%clk 0:02:41]} 12. Qd1 {[%clk 0:02:42]}  Qh4 {[%clk 0:02:38]} 13. g3 {[%clk 0:02:41]}  Qf6 {[%clk 0:02:36]} 14. Nxe4 {[%clk 0:02:41]}  Nf3+ {[%clk 0:02:37]} 15. Ke2 {[%clk 0:02:41]}  Nd4+ {[%clk 0:02:37]} 16. Ke1 {[%clk 0:02:42]}  Nf3+ {[%clk 0:02:24]} 17. Ke2 {[%clk 0:02:42]}  Nd4+ {[%clk 0:02:24]} 18. Ke1 {[%clk 0:02:42]}  Nf3+ {[%clk 0:00:02]} 19. Ke2 {[%clk 0:02:28]} 1/2-1/2


[Site "https://www.chess.com"]